bitfinex/quotes_BTCUSD_20251116
["timestamp","ask_amount","ask_price","bid_price","bid_amount"]
[1763254951288,0.53293628,95267.0,95266.0,0.02098]
[1763254951499,0.55246696,95267.0,95266.0,0.04357539]
[1763254951693,0.56830696,95267.0,95266.0,0.02259539]
[1763254952026,0.34253068,95267.0,95266.0,0.02259539]
[1763254952240,0.56830696,95267.0,95266.0,0.02259539]
[1763254952440,0.64564494,95267.0,95266.0,0.02259539]
[1763254952674,0.20995832,95257.0,95256.0,0.02822518]
[1763254952845,0.229489,95257.0,95256.0,0.05083941]
[1763254953067,0.245329,95257.0,95256.0,0.05083941]
[1763254953227,0.245329,95257.0,95256.0,0.02261423]
[1763254953561,0.42172671,95257.0,95256.0,0.02261423]
[1763254954300,0.31836813,95257.0,95256.0,0.02261423]
[1763254954590,0.31936813,95257.0,95256.0,0.02261423]
[1763254955425,0.10840981,95257.0,95256.0,0.02261423]
[1763254955628,0.10940981,95257.0,95256.0,0.02261423]
[1763254956877,0.10840981,95257.0,95256.0,0.02261423]
[1763254957519,0.10940981,95257.0,95256.0,0.02261423]
[1763254957967,0.10840981,95257.0,95256.0,0.02261423]
[1763254958174,0.10940981,95257.0,95256.0,0.02261423]
[1763254958379,0.08987913,95257.0,95256.0,0.02261423]
[1763254959688,0.001,95257.0,95256.0,0.02261423]
[1763254960106,0.001,95257.0,95256.0,0.08120017]
[1763254960320,0.001,95257.0,95256.0,0.04361028]
[1763254960533,0.08887913,95276.0,95272.0,0.20992503]
[1763254960753,0.08887913,95276.0,95274.0,0.20992051]
[1763254960980,0.08887913,95276.0,95275.0,0.01556]
[1763254961153,0.08887913,95276.0,95275.0,0.03821982]
[1763254961855,0.08887913,95276.0,95275.0,0.03835253]
[1763254961999,0.08987913,95276.0,95275.0,0.03835253]
[1763254962671,0.29979558,95276.0,95275.0,0.02279253]
[1763254962938,0.31563558,95276.0,95275.0,0.02279253]
[1763254963149,0.31463558,95276.0,95275.0,0.02279253]
[1763254963354,0.29979558,95276.0,95275.0,0.02279253]
[1763254965087,0.29979558,95276.0,95275.0,0.00013558]
[1763254965320,0.001,95276.0,95275.0,0.00013558]
[1763254965557,0.001,95276.0,95275.0,0.23270401]
[1763254966214,0.08887913,95289.0,95275.0,0.23270401]
[1763254966215,0.41187913,95289.0,95284.0,0.01556]
[1763254966630,0.41187913,95289.0,95285.0,0.00863]
[1763254967268,0.08887913,95292.0,95285.0,0.00863]
[1763254967482,0.08887913,95292.0,95286.0,0.20989394]
[1763254967702,0.08887913,95292.0,95287.0,0.20989198]
[1763254967918,0.323,95293.0,95286.0,0.02421]
[1763254968137,0.323,95293.0,95285.0,0.00863]
[1763254968138,0.323,95290.0,95285.0,0.00863]
[1763254968365,0.00244708,95295.0,95294.0,0.01162]
[1763254968605,0.00244708,95295.0,95294.0,0.02718]
[1763254969473,0.00244708,95295.0,95294.0,0.05139]
[1763254969707,0.00244708,95295.0,95294.0,0.03583]
[1763254969931,0.00244708,95295.0,95294.0,0.03424123]
[1763254970133,0.00244708,95295.0,95294.0,0.02262123]
[1763254970354,0.10716621,95295.0,95280.0,0.02832118]
[1763254970514,0.20990353,95282.0,95281.0,0.02261152]
[1763254971802,0.20991645,95276.0,95275.0,0.00013558]
[1763254971959,0.29879558,95276.0,95275.0,0.02274507]
[1763254972947,0.20991392,95278.0,95275.0,0.02274507]
[1763254973147,1.06959267,95320.0,95284.0,0.01556]
[1763254973379,0.62175372,95295.0,95294.0,0.01556]
[1763254973817,0.20989551,95286.0,95272.0,0.02421]
[1763254973975,0.20989787,95285.0,95279.0,0.20990861]
[1763254974197,0.20989915,95284.0,95280.0,0.02260455]
[1763254974396,0.20989915,95284.0,95279.0,0.20990861]
[1763254974595,0.20989915,95284.0,95280.0,0.02260291]
[1763254974821,0.41187913,95295.0,95276.0,0.02421]
[1763254975029,0.41187913,95295.0,95277.0,0.02260291]
[1763254975227,0.20991203,95279.0,95278.0,0.02260291]
[1763254976115,0.20990635,95281.0,95278.0,0.02260291]
[1763254976319,0.20990267,95283.0,95279.0,0.02260291]
[1763254976515,0.08887913,95295.0,95280.0,0.02260291]
[1763254976731,0.0002,95300.0,95299.0,0.20986579]
[1763254976928,0.0002,95300.0,95294.0,0.01162]
[1763254977099,0.0002,95300.0,95298.0,0.20986712]
[1763254977465,0.0002,95300.0,95299.0,0.02258779]
[1763254977669,0.0002,95300.0,95299.0,0.04679779]
[1763254977892,0.0002,95300.0,95292.0,0.20988031]
[1763254978114,0.0002,95300.0,95295.0,0.02258877]
[1763254978115,0.20986683,95299.0,95295.0,0.02258877]
[1763254978366,0.0002,95300.0,95286.0,0.02832118]
[1763254978367,0.08907913,95300.0,95286.0,0.02832118]
[1763254978572,0.20987455,95296.0,95287.0,0.02258444]
[1763254978723,0.08907913,95300.0,95293.0,0.20987756]
[1763254978924,0.09007913,95300.0,95293.0,0.20987756]
[1763254979298,0.0002,95300.0,95298.0,0.20986631]
[1763254979493,0.0002,95300.0,95299.0,0.02718]
[1763254979811,0.21006358,95300.0,95299.0,0.01162]
[1763254980024,0.0002,95300.0,95296.0,0.01162]
[1763254980224,0.0012,95300.0,95296.0,0.01162]
[1763254980595,0.20986867,95298.0,95296.0,0.01162]
[1763254980803,0.0002,95300.0,95284.0,0.22151789]
[1763254981009,0.0002,95300.0,95296.0,0.01162]
[1763254981144,0.0002,95300.0,95299.0,0.01556]
[1763254981746,0.0012,95300.0,95299.0,0.01556]
[1763254983135,0.0012,95300.0,95296.0,0.22149119]
[1763254983136,0.0012,95300.0,95296.0,0.01162]
[1763254983372,0.08887913,95299.0,95296.0,0.01162]
[1763254983784,0.0012,95300.0,95297.0,0.20986957]
[1763254983986,0.0012,95300.0,95298.0,0.20986662]
[1763254984215,0.20986614,95299.0,95296.0,0.01162]
[1763254984391,0.20986897,95298.0,95296.0,0.01162]
[1763254984669,0.20989563,95286.0,95280.0,0.02832118]
[1763254984845,0.20989812,95285.0,95281.0,0.02258101]
[1763254985061,0.20989812,95285.0,95275.0,0.02845676]
[1763254985062,0.00605,95297.0,95287.0,0.02867]
[1763254985260,0.20988605,95290.0,95288.0,0.01623]
[1763254985553,0.00605,95297.0,95288.0,0.01623]
[1763254985787,0.00605,95297.0,95288.0,0.22611966]
[1763254986007,0.00605,95297.0,95288.0,0.01623]
[1763254986260,0.08907913,95300.0,95298.0,0.20986776]
[1763254986524,0.0002,95300.0,95299.0,0.02867]
[1763254988109,0.0002,95300.0,95299.0,0.22230579]
[1763254988331,0.0012,95300.0,95299.0,0.24490532]
[1763254988597,0.21106358,95300.0,95299.0,0.03503953]
[1763254989046,0.0012,95300.0,95299.0,0.03503953]
[1763254989481,0.0012,95300.0,95299.0,0.24490532]
[1763254989923,0.0012,95300.0,95299.0,0.03503953]
[1763254990144,0.21106358,95300.0,95299.0,0.03503953]
[1763254990378,0.29994271,95300.0,95299.0,0.02259953]
[1763254990623,0.20987339,95296.0,95292.0,0.02098]
[1763254990847,0.209879,95293.0,95292.0,0.02098]
[1763254991072,0.225339,95293.0,95292.0,0.04360056]
[1763254991528,0.09007913,95300.0,95293.0,0.02328]
[1763254991529,0.0012,95300.0,95293.0,0.02328]
[1763254991731,0.0002,95300.0,95294.0,0.02262056]
[1763254991936,0.0002,95300.0,95298.0,0.2098679]
[1763254992167,0.0002,95300.0,95296.0,0.20987239]
[1763254992374,0.0002,95300.0,95296.0,0.20987166]
[1763254992585,0.09007913,95300.0,95298.0,0.20986734]
[1763254992940,0.08907913,95300.0,95299.0,0.01236]
[1763254993144,0.09007913,95300.0,95299.0,0.22222579]
[1763254993947,0.10548913,95300.0,95291.0,0.02098]
[1763254994146,0.2098768,95294.0,95293.0,0.02098]
[1763254994324,0.2098768,95294.0,95293.0,0.04361108]
[1763254995171,0.00605,95296.0,95293.0,0.04361108]
[1763254995377,0.00605,95296.0,95295.0,0.20987459]
[1763254995688,0.21592239,95296.0,95295.0,0.02263108]
[1763254995892,0.20988781,95289.0,95288.0,0.02098]
[1763254996327,0.2098746,95295.0,95288.0,0.04362297]
[1763254996525,0.2098746,95295.0,95285.0,0.01236]
[1763254996526,0.20987879,95294.0,95290.0,0.02098]
[1763254996731,0.20987986,95293.0,95292.0,0.02098]
[1763254997078,0.54828986,95293.0,95292.0,0.02098]
[1763254997316,0.56789033,95293.0,95292.0,0.02098]
[1763254997500,0.20991204,95278.0,95277.0,0.04930118]
[1763254997705,0.20991204,95278.0,95277.0,0.04362948]
[1763254998068,0.22532204,95278.0,95277.0,0.04362948]
[1763254999216,0.20991645,95276.0,95275.0,0.00013558]
[1763254999419,0.001,95278.0,95275.0,0.0227819]
[1763254999643,0.20991517,95277.0,95276.0,0.02264632]
[1763254999984,0.20991425,95277.0,95276.0,0.02264632]
[1763255000201,0.20491425,95277.0,95276.0,0.02264632]
[1763255000927,0.20591425,95277.0,95276.0,0.02264632]
[1763255001367,0.001,95277.0,95275.0,0.00013558]
[1763255001568,0.20991645,95276.0,95275.0,0.00013558]
[1763255001770,0.20991645,95276.0,95275.0,0.02277439]
[1763255003443,0.20991645,95276.0,95275.0,0.00013558]
[1763255004124,0.001,95276.0,95275.0,0.00013558]
[1763255004562,0.001,95276.0,95275.0,0.23268602]
[1763255005190,0.001,95276.0,95275.0,0.25366602]
[1763255006745,0.20990372,95282.0,95278.0,0.02098]
[1763255006957,0.20990984,95279.0,95278.0,0.02098]
[1763255007783,0.323,95289.0,95287.0,0.01636]
[1763255007990,0.53289001,95288.0,95287.0,0.01636]
[1763255008185,0.323,95288.0,95282.0,0.02098]
[1763255008533,0.20990103,95283.0,95282.0,0.02098]
[1763255008959,0.20989882,95284.0,95282.0,0.02098]
[1763255009158,0.323,95288.0,95283.0,0.20990103]
[1763255009304,0.323,95288.0,95284.0,0.20989683]
[1763255009886,0.20989497,95286.0,95283.0,0.20990103]
[1763255010358,0.20989497,95286.0,95282.0,0.02098]
[1763255010577,0.20990103,95283.0,95282.0,0.02098]
[1763255011847,0.20989882,95284.0,95282.0,0.02098]
[1763255012261,0.20990103,95283.0,95282.0,0.02098]
[1763255013292,0.20991645,95276.0,95275.0,0.00013558]
[1763255013499,0.22597645,95276.0,95275.0,0.04374924]
[1763255013698,0.20991645,95276.0,95275.0,0.04374924]
[1763255013910,0.20991645,95276.0,95275.0,0.02111558]
[1763255015613,0.20991645,95276.0,95275.0,0.00013558]
[1763255020759,0.22597645,95276.0,95275.0,0.00013558]
[1763255022512,0.54897645,95276.0,95275.0,0.00013558]
[1763255022809,0.56858057,95276.0,95275.0,0.00013558]
[1763255023024,0.56957941,95276.0,95275.0,0.00013558]
[1763255023659,0.56857941,95276.0,95275.0,0.00013558]
[1763255024084,0.56957941,95276.0,95275.0,0.00013558]
[1763255026005,0.02060296,95276.0,95275.0,0.21005423]
[1763255026217,0.001,95276.0,95275.0,0.00013558]
[1763255026429,0.001,95276.0,95275.0,0.02277356]
[1763255027245,0.20989026,95288.0,95275.0,0.02277356]
[1763255027449,0.298769,95289.0,95284.0,0.20989868]
[1763255027622,0.08887913,95289.0,95287.0,0.20989195]
[1763255028183,0.08887913,95289.0,95275.0,0.02383558]
[1763255028390,0.08887913,95289.0,95287.0,0.20989086]
[1763255028596,0.08887913,95289.0,95288.0,0.01618]
[1763255029046,0.08887913,95289.0,95287.0,0.20989086]
[1763255029497,0.323,95296.0,95294.0,0.20987661]
[1763255029711,0.323,95296.0,95292.0,0.20988082]
[1763255029915,0.20987459,95295.0,95291.0,0.20988242]
[1763255030117,0.323,95296.0,95292.0,0.20987957]
[1763255030381,0.323,95296.0,95294.0,0.20987645]
[1763255030811,0.53287352,95296.0,95293.0,0.209879]
[1763255031020,0.53387352,95296.0,95293.0,0.209879]
[1763255031173,0.20988365,95291.0,95288.0,0.2098888]
[1763255031371,0.323,95299.0,95282.0,0.0237]
[1763255031372,0.08887913,95289.0,95282.0,0.0237]
[1763255031581,0.20990183,95283.0,95278.0,0.20991127]
[1763255031782,0.08887913,95289.0,95279.0,0.04361336]
[1763255031993,0.08887913,95289.0,95284.0,0.01618]
[1763255032367,0.08887913,95289.0,95288.0,0.20989001]
[1763255032572,0.324,95296.0,95288.0,0.20989001]
[1763255032777,0.53287271,95296.0,95292.0,0.20987964]
[1763255033091,0.323,95296.0,95292.0,0.20987964]
[1763255033290,0.323,95296.0,95294.0,0.20987642]
[1763255033824,0.323,95297.0,95293.0,0.209879]
[1763255034040,0.323,95297.0,95291.0,0.20988172]
[1763255034041,0.0002,95300.0,95295.0,0.20987459]
[1763255034175,0.0002,95300.0,95298.0,0.20986674]
[1763255034826,0.0002,95300.0,95294.0,0.01128]
[1763255034997,0.20986598,95299.0,95294.0,0.01128]
[1763255035207,0.20986949,95298.0,95294.0,0.01128]
[1763255035410,0.21006464,95300.0,95297.0,0.20986985]
[1763255035595,0.0002,95300.0,95297.0,0.20986985]
[1763255035808,0.0002,95300.0,95298.0,0.20986776]
[1763255036271,0.0002,95300.0,95299.0,0.23356579]
[1763255036590,0.0002,95300.0,95299.0,0.0237]
[1763255036798,0.0002,95300.0,95299.0,0.20986579]
[1763255037003,0.0012,95300.0,95299.0,0.20986579]
[1763255037195,4.126e-05,95300.0,95299.0,0.20986579]
[1763255037943,4.126e-05,95300.0,95294.0,0.01128]
[1763255038144,4.126e-05,95300.0,95298.0,0.20986726]
[1763255038550,0.00104126,95300.0,95298.0,0.20986726]
[1763255038904,4.126e-05,95300.0,95298.0,0.20986726]
[1763255039451,4.126e-05,95300.0,95299.0,0.0237]
[1763255039654,0.00104126,95300.0,95299.0,0.0237]
[1763255041061,0.00104126,95300.0,95299.0,0.23356579]
[1763255041459,4.126e-05,95300.0,95299.0,0.23356579]
[1763255041875,0.00104126,95300.0,95299.0,0.20986579]
[1763255042072,0.02556126,95300.0,95292.0,0.02098]
[1763255042272,0.08887913,95296.0,95292.0,0.02098]
[1763255042478,0.548379,95293.0,95292.0,0.02098]
[1763255042674,0.20991645,95276.0,95272.0,0.02832118]
[1763255042924,0.2987874,95280.0,95275.0,0.02111558]
[1763255043121,0.20989818,95285.0,95281.0,0.20990525]
[1763255043276,0.08887913,95281.0,95277.0,0.02098]
[1763255043476,0.20991204,95278.0,95277.0,0.02098]
[1763255043730,0.08887913,95281.0,95277.0,0.02098]
[1763255043929,0.20990764,95280.0,95277.0,0.02098]
[1763255044149,0.20991454,95277.0,95275.0,0.02111558]
[1763255044346,0.20991645,95276.0,95275.0,0.02111558]
[1763255044775,0.08887913,95281.0,95275.0,0.02111558]
[1763255045010,0.67787391,95290.0,95275.0,0.02111558]
[1763255045011,0.323,95287.0,95279.0,0.20990984]
[1763255045198,0.20990543,95281.0,95280.0,0.02098]
[1763255045422,0.29878456,95281.0,95280.0,0.02098]
[1763255046012,0.08887913,95281.0,95280.0,0.02098]
[1763255046399,0.20990192,95283.0,95280.0,0.02098]
[1763255046938,0.20989604,95286.0,95282.0,0.20990312]
[1763255047174,0.20989694,95285.0,95282.0,0.20990312]
[1763255047385,0.2098995,95284.0,95281.0,0.20990537]
[1763255047588,0.20990187,95283.0,95280.0,0.20990324]
[1763255047792,0.20990134,95283.0,95280.0,0.20990324]
[1763255048214,0.08887913,95281.0,95276.0,0.0232]
[1763255048416,0.20991261,95278.0,95275.0,0.2100542]
[1763255049143,0.20991261,95278.0,95275.0,0.00013558]
[1763255049682,0.20991439,95277.0,95275.0,0.00013558]
[1763255050358,0.20991645,95276.0,95275.0,0.00013558]
[1763255050558,0.23414645,95276.0,95275.0,0.00013558]
[1763255051514,0.55714645,95276.0,95275.0,0.00013558]
[1763255052701,0.55814645,95276.0,95275.0,0.00013558]
[1763255054598,0.57771504,95276.0,95275.0,0.00013558]
[1763255056998,0.57671504,95276.0,95275.0,0.00013558]
[1763255057414,0.57771504,95276.0,95275.0,0.00013558]
[1763255058449,0.68138442,95276.0,95275.0,0.00013558]
[1763255059669,0.72480316,95276.0,95275.0,0.00013558]
[1763255060590,0.72480316,95276.0,95231.0,0.01243]
[1763255060591,0.21001123,95233.0,95232.0,0.02258401]
[1763255060802,0.21002424,95228.0,95220.0,0.03882317]
[1763255061010,0.21002424,95228.0,95226.0,0.01172563]
[1763255061883,0.2100206,95229.0,95227.0,0.02098]
[1763255062515,0.21001694,95231.0,95227.0,0.02098]
[1763255062731,0.08887913,95232.0,95230.0,0.23099626]
[1763255062951,0.08887913,95232.0,95231.0,0.21001564]
[1763255063164,0.02455,95243.0,95230.0,0.02098]
[1763255063165,0.20999166,95242.0,95230.0,0.02098]
[1763255063378,0.08887913,95232.0,95231.0,0.21001564]
[1763255064100,0.5329824,95247.0,95240.0,0.01243]
[1763255064299,0.20998506,95245.0,95240.0,0.01243]
[1763255064536,0.20998826,95244.0,95240.0,0.01243]
[1763255064937,0.20998979,95243.0,95240.0,0.01243]
[1763255065142,0.20999359,95241.0,95240.0,0.01243]
[1763255066162,0.20999359,95241.0,95236.0,0.21000376]
[1763255066367,0.41187913,95248.0,95237.0,0.21000171]
[1763255066583,0.20998963,95243.0,95239.0,0.20999748]
[1763255066757,0.20998963,95243.0,95238.0,0.20999974]
[1763255067027,0.323,95248.0,95243.0,0.20998745]
[1763255067233,0.01628,95244.0,95226.0,0.02502563]
[1763255067459,0.20999168,95242.0,95235.0,0.21000656]
[1763255067669,0.323,95248.0,95231.0,0.02098]
[1763255067875,0.323,95248.0,95241.0,0.01243]
[1763255067876,0.41187913,95248.0,95241.0,0.01243]
[1763255068078,0.41187913,95248.0,95246.0,0.20998054]
[1763255068537,0.20998092,95247.0,95244.0,0.20998224]
[1763255068748,0.08887913,95248.0,95246.0,0.20998159]
[1763255068957,0.00888,95266.0,95253.0,0.02824]
[1763255069162,0.5329604,95257.0,95254.0,0.01581]
[1763255069589,0.323,95257.0,95254.0,0.22577397]
[1763255069795,0.323,95257.0,95255.0,0.2099614]
[1763255070010,0.08887913,95264.0,95258.0,0.2099547]
[1763255070184,0.20994768,95262.0,95257.0,0.20995744]
[1763255070395,0.323,95263.0,95253.0,0.01243]
[1763255070626,0.20996341,95255.0,95253.0,0.01243]
[1763255071035,0.08887913,95264.0,95253.0,0.03745563]
[1763255071266,0.323,95263.0,95259.0,0.20995292]
[1763255071471,0.323,95263.0,95254.0,0.02348]
[1763255071472,0.20995822,95258.0,95254.0,0.02348]
[1763255071679,0.323,95261.0,95255.0,0.20996104]
[1763255071850,0.20995236,95260.0,95255.0,0.20996104]
[1763255073052,0.08887913,95264.0,95256.0,0.02348]
[1763255073459,0.08887913,95264.0,95257.0,0.01199]
[1763255073655,0.2099541,95259.0,95257.0,0.01199]
[1763255073909,0.08887913,95264.0,95257.0,0.01199]
[1763255074136,0.08887913,95264.0,95262.0,0.20994632]
[1763255074341,0.20992004,95275.0,95263.0,0.02348]
[1763255074548,0.323,95272.0,95269.0,0.20993137]
[1763255074755,0.323,95272.0,95271.0,0.20992747]
[1763255074960,0.20990853,95280.0,95276.0,0.22190597]
[1763255075203,0.20990249,95283.0,95276.0,0.22190597]
[1763255075395,0.02253,95289.0,95270.0,0.01199]
[1763255075525,0.20991653,95276.0,95271.0,0.20992715]
[1763255075725,0.00888,95280.0,95270.0,0.01199]
[1763255075939,0.00888,95280.0,95278.0,0.20991129]
[1763255076575,0.00888,95280.0,95271.0,0.20992706]
[1763255076792,0.2099191,95275.0,95271.0,0.20992706]
[1763255077021,0.2099191,95275.0,95272.0,0.20992485]
[1763255077431,0.20991538,95277.0,95273.0,0.2099228]
[1763255077630,0.20990984,95279.0,95273.0,0.2099228]
[1763255077981,0.08887913,95281.0,95280.0,0.20990764]
[1763255078155,0.08887913,95281.0,95279.0,0.20990963]
[1763255078360,0.08887913,95281.0,95280.0,0.20990764]
[1763255078803,0.08887913,95281.0,95279.0,0.20990984]
[1763255079192,0.08887913,95281.0,95280.0,0.20990764]
[1763255079405,0.08887913,95281.0,95279.0,0.20990984]
[1763255080322,0.20991982,95275.0,95270.0,0.22191873]
[1763255080543,0.08887913,95281.0,95271.0,0.02260601]
[1763255080762,0.08887913,95281.0,95272.0,0.02260601]
[1763255080943,0.08887913,95281.0,95278.0,0.20991186]
[1763255081158,0.08887913,95281.0,95279.0,0.20990984]
[1763255081370,0.20989222,95287.0,95282.0,0.20990103]
[1763255081608,0.323,95288.0,95287.0,0.01199]
[1763255081818,0.53289001,95288.0,95287.0,0.03303]
[1763255082680,0.53289001,95288.0,95287.0,0.03316563]
[1763255083263,0.53289001,95288.0,95287.0,0.00013563]
[1763255086742,0.20990103,95283.0,95282.0,0.01617563]
[1763255086948,0.20990103,95283.0,95282.0,0.01622085]
[1763255088162,0.323,95288.0,95282.0,0.01622085]
[1763255088365,4.126e-05,95300.0,95291.0,0.02796]
[1763255088567,4.126e-05,95300.0,95299.0,0.01597]
[1763255088764,4.126e-05,95300.0,95291.0,0.02816563]
[1763255088765,0.20987255,95296.0,95291.0,0.02816563]
[1763255088966,0.20987255,95296.0,95292.0,0.20988067]
[1763255089312,0.20987255,95296.0,95293.0,0.20987763]
[1763255089509,0.20986957,95298.0,95294.0,0.20987631]
[1763255089963,0.20987989,95293.0,95291.0,0.01617563]
[1763255090393,0.20986957,95298.0,95291.0,0.01617563]
[1763255090592,0.20987335,95296.0,95293.0,0.20987789]
[1763255091324,4.126e-05,95300.0,95295.0,0.20987436]
[1763255091667,0.20987038,95297.0,95293.0,0.209877]
[1763255092189,0.20988181,95292.0,95290.0,0.01199]
[1763255092418,0.0239,95291.0,95282.0,4.522e-05]
[1763255092619,0.0239,95291.0,95285.0,0.20989662]
[1763255092620,0.00888,95291.0,95285.0,0.20989662]
[1763255092847,0.21876347,95291.0,95287.0,0.20989109]
[1763255093117,4.126e-05,95300.0,95294.0,0.02796]
[1763255093324,4.126e-05,95300.0,95294.0,0.23783503]
[1763255093740,4.126e-05,95300.0,95298.0,0.2098673]
[1763255093954,4.126e-05,95300.0,95294.0,0.02796]
[1763255094401,0.20987287,95296.0,95294.0,0.02796]
[1763255095103,0.20986579,95299.0,95295.0,0.20987402]
[1763255095249,4.126e-05,95300.0,95297.0,0.20986879]
[1763255095703,0.20990489,95300.0,95296.0,0.20987163]
[1763255096138,0.20990489,95300.0,95297.0,0.20986984]
[1763255096525,4.126e-05,95300.0,95298.0,0.20986691]
[1763255096653,4.126e-05,95300.0,95299.0,0.20986579]
[1763255099494,4.126e-05,95300.0,95299.0,0.23334579]
[1763255099707,4.126e-05,95300.0,95299.0,0.20986579]
[1763255100498,4.126e-05,95300.0,95299.0,0.23334579]
[1763255100939,4.126e-05,95300.0,95299.0,0.20986579]
[1763255101521,4.126e-05,95300.0,95299.0,0.23252579]
[1763255101731,0.01572126,95300.0,95287.0,0.02266]
[1763255101937,0.18884781,95289.0,95288.0,0.02261402]
[1763255102152,0.20990576,95300.0,95288.0,0.02261402]
[1763255102360,4.126e-05,95300.0,95299.0,0.02735]
[1763255102561,0.2987482,95298.0,95286.0,0.02832118]
[1763255102769,4.126e-05,95300.0,95299.0,0.20986579]
[1763255102939,4.126e-05,95300.0,95299.0,0.22569579]
[1763255103144,4.126e-05,95300.0,95299.0,0.01583]
[1763255103351,0.20987237,95297.0,95291.0,0.01152]
[1763255103557,0.20987237,95297.0,95288.0,0.02832118]
[1763255103558,0.08887913,95293.0,95292.0,0.02263065]
[1763255103755,0.29875813,95293.0,95292.0,0.02263065]
[1763255103953,0.08887913,95293.0,95292.0,0.02263065]
[1763255104154,0.08892039,95300.0,95292.0,0.02263065]
[1763255104337,0.20986634,95299.0,95295.0,0.20987459]
[1763255104538,0.20986634,95299.0,95296.0,0.02263065]
[1763255104882,0.08892039,95300.0,95297.0,0.02263065]
[1763255105100,0.08892039,95300.0,95298.0,0.23249771]
[1763255105305,0.298784,95300.0,95299.0,0.02263065]
[1763255106784,0.08892039,95300.0,95299.0,0.02263065]
[1763255107203,0.08892039,95300.0,95299.0,0.04529065]
[1763255107392,0.29878397,95300.0,95299.0,0.04529065]
[1763255107820,0.08892039,95300.0,95299.0,0.25515644]
[1763255108023,0.29878397,95300.0,95299.0,0.04529065]
[1763255108539,0.08892039,95300.0,95299.0,0.04529065]
[1763255108948,0.08892039,95300.0,95299.0,0.23249644]
[1763255109152,0.08892039,95300.0,95299.0,0.02263065]
[1763255109368,0.29878397,95300.0,95299.0,0.02263065]
[1763255109796,0.29878397,95300.0,95297.0,0.23253008]
[1763255110009,0.08892039,95300.0,95298.0,0.02264589]
[1763255110225,0.08892039,95300.0,95299.0,0.23251168]
[1763255111829,4.126e-05,95300.0,95299.0,0.23251168]
[1763255112039,4.126e-05,95300.0,95299.0,0.25355168]
[1763255112248,4.126e-05,95300.0,95299.0,0.29131967]
[1763255112449,4.126e-05,95300.0,95299.0,0.25355168]
[1763255116761,4.126e-05,95300.0,95299.0,0.23251168]
[1763255119522,4.126e-05,95300.0,95299.0,0.27593042]
[1763255119700,4.126e-05,95300.0,95299.0,0.32534557]
[1763255119900,0.323,95331.0,95299.0,0.32534557]
[1763255119901,0.08887913,95330.0,95328.0,0.20980115]
[1763255120160,0.01963821,95329.0,95328.0,0.20980115]
[1763255120303,0.0002,95340.0,95337.0,0.02727]
[1763255120509,0.03171262,95340.0,95339.0,0.0157]
[1763255120718,0.05134514,95340.0,95339.0,0.0157]
[1763255121144,0.20977774,95339.0,95337.0,0.01157]
[1763255121359,0.20978214,95337.0,95330.0,0.02305]
[1763255121536,0.20980194,95328.0,95324.0,0.02305]
[1763255121737,0.29867955,95329.0,95327.0,0.03419003]
[1763255121937,0.08887913,95329.0,95328.0,0.02262003]
[1763255122159,0.2097999,95330.0,95328.0,0.04567003]
[1763255122362,0.29867536,95331.0,95329.0,0.02262003]
[1763255122559,0.08887913,95331.0,95330.0,0.04567003]
[1763255122734,0.20977825,95339.0,95338.0,0.02727]
[1763255122933,0.22939691,95339.0,95338.0,0.01157]
[1763255123139,0.01961866,95339.0,95338.0,0.01157]
[1763255123366,0.00065005,95340.0,95338.0,0.01157]
[1763255123772,0.00065005,95340.0,95339.0,0.02305]
[1763255128583,0.00065005,95340.0,95338.0,0.01157]
[1763255128856,0.20977774,95339.0,95338.0,0.01157]
[1763255129203,0.20977774,95339.0,95317.0,0.20982615]
[1763255129204,0.20980771,95326.0,95317.0,0.20982615]
[1763255129348,0.08887913,95320.0,95318.0,0.02258758]
[1763255129544,0.29870084,95320.0,95319.0,0.02258758]
[1763255130145,0.29870084,95320.0,95306.0,0.03773101]
[1763255130146,0.20984817,95307.0,95306.0,0.02829825]
[1763255130367,0.20985478,95304.0,95303.0,0.01157]
[1763255130505,0.20985478,95304.0,95303.0,0.03416254]
[1763255131217,0.21030455,95304.0,95303.0,0.03416254]
[1763255131529,0.21030455,95304.0,95303.0,0.02259254]
[1763255131949,0.21030455,95304.0,95294.0,0.20987646]
[1763255131950,0.22533895,95304.0,95293.0,0.02829825]
[1763255132130,0.2098812,95292.0,95289.0,0.03986825]
[1763255132330,0.01503,95300.0,95290.0,0.02260002]
[1763255132572,0.20986138,95301.0,95291.0,0.23248342]
[1763255132774,0.20987859,95294.0,95289.0,0.2214563]
[1763255132971,0.20987859,95294.0,95291.0,0.20988338]
[1763255133176,0.323,95302.0,95290.0,0.02260139]
[1763255133177,0.20987142,95297.0,95290.0,0.20988561]
[1763255133342,0.323,95302.0,95293.0,0.20987761]
[1763255133704,0.20987521,95295.0,95291.0,0.2098816]
[1763255133897,0.20988154,95292.0,95289.0,0.01157]
[1763255134092,0.20988452,95291.0,95290.0,0.0226009]
[1763255134333,0.32344977,95304.0,95298.0,0.01215]
[1763255134742,0.32344977,95304.0,95297.0,0.20986976]
[1763255134948,0.20986383,95300.0,95296.0,0.20987084]
[1763255135575,0.20986383,95300.0,95297.0,0.20986932]
[1763255136093,0.20986613,95299.0,95296.0,0.20987084]
[1763255136584,0.20986383,95300.0,95296.0,0.20987084]
[1763255136737,0.20986047,95302.0,95297.0,0.20986974]
[1763255136944,0.20986172,95301.0,95297.0,0.20986974]
[1763255137482,0.20986047,95302.0,95297.0,0.20986974]
[1763255137483,0.20986402,95300.0,95297.0,0.20986974]
[1763255137928,0.20986854,95298.0,95295.0,0.20987313]
[1763255138589,0.20987022,95297.0,95294.0,0.01215]
[1763255138761,0.20987022,95297.0,95295.0,0.20987432]
[1763255139171,0.20987319,95296.0,95294.0,0.01215]
[1763255139347,0.20989348,95287.0,95284.0,0.01215]
[1763255139561,0.20989479,95286.0,95285.0,0.02259738]
[1763255139818,0.29876556,95290.0,95285.0,0.02259738]
[1763255140031,0.20989539,95286.0,95284.0,0.01215]
[1763255140269,0.20989539,95286.0,95278.0,0.03589]
[1763255140270,0.20990984,95279.0,95278.0,0.01157]
[1763255140487,0.20992317,95273.0,95271.0,0.01215]
[1763255140705,0.20992317,95273.0,95264.0,0.02829825]
[1763255140706,0.08887913,95273.0,95272.0,0.02259847]
[1763255140922,0.20993793,95267.0,95264.0,0.01215]
[1763255141137,0.2099317,95270.0,95265.0,0.02260015]
[1763255141138,0.20993321,95269.0,95265.0,0.02260015]
[1763255141353,0.20993238,95269.0,95266.0,0.23253813]
[1763255141565,0.20992845,95271.0,95267.0,0.02260015]
[1763255141796,0.20992526,95272.0,95268.0,0.02260015]
[1763255142025,0.08887913,95273.0,95269.0,0.02260015]
[1763255142242,0.29880261,95273.0,95266.0,4.522e-05]
[1763255142450,0.29880261,95273.0,95267.0,0.02257708]